[Event "Early-Titled-Tuesday-Blitz-June-18-2024"]
[Site "Chess.com"]
[Date "2024.06.18"]
[Round "10"]
[White "AjedrezInteligente"]
[Black "RantomOpening"]
[Result "1-0"]
[WhiteElo "2437"]
[BlackElo "2597"]
[TimeControl "180+1"]
[EndTime "9:59:11 PDT"]
[Termination "AjedrezInteligente won by checkmate"]

1. e4 {[%clk 0:03:00.9]} 1... c5 {[%clk 0:02:59.2]} 2. c3 {[%clk 0:03:00]} 2...
Nf6 {[%clk 0:02:58.3]} 3. e5 {[%clk 0:03:00.6]} 3... Nd5 {[%clk 0:02:58.3]} 4.
d4 {[%clk 0:03:01.5]} 4... cxd4 {[%clk 0:02:59.1]} 5. Nf3 {[%clk 0:03:02]} 5...
d6 {[%clk 0:02:59.6]} 6. cxd4 {[%clk 0:03:02.9]} 6... Nc6 {[%clk 0:02:58.3]} 7.
Bc4 {[%clk 0:03:02.6]} 7... dxe5 {[%clk 0:02:58.6]} 8. dxe5 {[%clk 0:03:03]}
8... Be6 {[%clk 0:02:58]} 9. O-O {[%clk 0:03:03.5]} 9... g6 {[%clk 0:02:58]} 10.
Ng5 {[%clk 0:03:03.9]} 10... Nxe5 {[%clk 0:02:56.8]} 11. Nxe6 {[%clk 0:03:03.4]}
11... fxe6 {[%clk 0:02:57.4]} 12. Bb5+ {[%clk 0:03:02.8]} 12... Kf7 {[%clk
0:02:57.7]} 13. Re1 {[%clk 0:02:57.1]} 13... Bg7 {[%clk 0:02:53.5]} 14. Bd2
{[%clk 0:02:55.6]} 14... a6 {[%clk 0:02:51.3]} 15. Bf1 {[%clk 0:02:54.9]} 15...
Qd6 {[%clk 0:02:36.5]} 16. Nc3 {[%clk 0:02:54.9]} 16... Nxc3 {[%clk 0:02:35.3]}
17. Bxc3 {[%clk 0:02:55.8]} 17... Rhd8 {[%clk 0:02:29.7]} 18. Qb3 {[%clk
0:02:55.5]} 18... Qd5 {[%clk 0:02:23.6]} 19. Bxe5 {[%clk 0:02:19]} 19... Bxe5
{[%clk 0:02:14.3]} 20. Bc4 {[%clk 0:02:19.2]} 20... Qd6 {[%clk 0:01:46]} 21.
Rad1 {[%clk 0:02:17.4]} 21... Qc6 {[%clk 0:01:38]} 22. Rxd8 {[%clk 0:01:48.7]}
22... Rxd8 {[%clk 0:01:16]} 23. Rxe5 {[%clk 0:01:47.4]} 23... b5 {[%clk
0:01:03.1]} 24. Bxe6+ {[%clk 0:01:40.5]} 24... Kg7 {[%clk 0:00:59.2]} 25. Re1
{[%clk 0:01:39.2]} 25... Qd6 {[%clk 0:00:54.4]} 26. Qc3+ {[%clk 0:01:35.4]}
26... Qd4 {[%clk 0:00:54]} 27. g3 {[%clk 0:01:31.2]} 27... Qxc3 {[%clk
0:00:51.5]} 28. bxc3 {[%clk 0:01:32.1]} 28... Rd2 {[%clk 0:00:51.4]} 29. a4
{[%clk 0:01:25]} 29... bxa4 {[%clk 0:00:50.5]} 30. Ra1 {[%clk 0:01:24.8]} 30...
Rd6 {[%clk 0:00:45.6]} 31. Bc4 {[%clk 0:01:20.7]} 31... Rc6 {[%clk 0:00:45.3]}
32. Rxa4 {[%clk 0:01:20.7]} 32... e5 {[%clk 0:00:41.6]} 33. Kf1 {[%clk
0:01:20.4]} 33... Rc5 {[%clk 0:00:40.8]} 34. Ke2 {[%clk 0:01:19.3]} 34... a5
{[%clk 0:00:41]} 35. Kd3 {[%clk 0:01:16.8]} 35... Kf6 {[%clk 0:00:41.9]} 36. f3
{[%clk 0:01:08.2]} 36... h5 {[%clk 0:00:40.9]} 37. Ra1 {[%clk 0:01:03.4]} 37...
g5 {[%clk 0:00:40.6]} 38. Rb1 {[%clk 0:01:03.3]} 38... Rc8 {[%clk 0:00:39.3]}
39. Rb6+ {[%clk 0:01:03.5]} 39... Kg7 {[%clk 0:00:38.7]} 40. Ra6 {[%clk
0:01:03.6]} 40... Rd8+ {[%clk 0:00:38.5]} 41. Ke4 {[%clk 0:01:02.8]} 41... Rc8
{[%clk 0:00:39.1]} 42. Bd3 {[%clk 0:00:52.7]} 42... Rxc3 {[%clk 0:00:37]} 43.
Rxa5 {[%clk 0:00:53.1]} 43... g4 {[%clk 0:00:34.8]} 44. fxg4 {[%clk 0:00:52.1]}
44... hxg4 {[%clk 0:00:35.7]} 45. Rxe5 {[%clk 0:00:52.3]} 45... Ra3 {[%clk
0:00:34.2]} 46. Be2 {[%clk 0:00:49.2]} 46... Kf6 {[%clk 0:00:33.5]} 47. Rf5+
{[%clk 0:00:46.9]} 47... Kg6 {[%clk 0:00:33.8]} 48. Bxg4 {[%clk 0:00:46.1]}
48... Ra2 {[%clk 0:00:32.3]} 49. h4 {[%clk 0:00:45.6]} 49... Ra4+ {[%clk
0:00:32.6]} 50. Kf3 {[%clk 0:00:46]} 50... Rb4 {[%clk 0:00:32.5]} 51. Rg5+
{[%clk 0:00:44.9]} 51... Kh6 {[%clk 0:00:32.4]} 52. Bf5 {[%clk 0:00:44.8]} 52...
Rf4+ {[%clk 0:00:29.3]} 53. Kg2 {[%clk 0:00:38.6]} 53... Rf2+ {[%clk 0:00:28.9]}
54. Kg1 {[%clk 0:00:10]} 54... Rf1+ {[%clk 0:00:23.6]} 55. Kh2 {[%clk
0:00:10.2]} 55... Rf2+ {[%clk 0:00:23.4]} 56. Kh1 {[%clk 0:00:10.7]} 56... Rf1+
{[%clk 0:00:23.1]} 57. Kg2 {[%clk 0:00:11.4]} 57... Rf2+ {[%clk 0:00:22.2]} 58.
Kg1 {[%clk 0:00:11]} 58... Rg2+ {[%clk 0:00:21.2]} 59. Kf1 {[%clk 0:00:10.9]}
59... Rg1+ {[%clk 0:00:20]} 60. Ke2 {[%clk 0:00:10.7]} 60... Re1+ {[%clk
0:00:19.4]} 61. Kd3 {[%clk 0:00:09.5]} 61... Re3+ {[%clk 0:00:19.3]} 62. Kd4
{[%clk 0:00:09.8]} 62... Re4+ {[%clk 0:00:16.9]} 63. Kd5 {[%clk 0:00:10.2]}
63... Re5+ {[%clk 0:00:16.4]} 64. Kd6 {[%clk 0:00:10.7]} 64... Rd5+ {[%clk
0:00:16.1]} 65. Ke7 {[%clk 0:00:10.7]} 65... Re5+ {[%clk 0:00:13.3]} 66. Kf6
{[%clk 0:00:10.9]} 66... Re1 {[%clk 0:00:09.7]} 67. Rg6+ {[%clk 0:00:11.3]}
67... Kh5 {[%clk 0:00:08.9]} 68. g4+ {[%clk 0:00:11.8]} 68... Kxh4 {[%clk
0:00:09.4]} 69. Rh6+ {[%clk 0:00:12.1]} 69... Kg3 {[%clk 0:00:09.5]} 70. g5
{[%clk 0:00:12.6]} 70... Ra1 {[%clk 0:00:10]} 71. g6 {[%clk 0:00:13.1]} 71...
Kf4 {[%clk 0:00:10.6]} 72. Rh4+ {[%clk 0:00:12.7]} 72... Kg3 {[%clk 0:00:10.4]}
73. Rg4+ {[%clk 0:00:13.2]} 73... Kf3 {[%clk 0:00:11.1]} 74. Rd4 {[%clk
0:00:13.3]} 74... Ra6+ {[%clk 0:00:11.2]} 75. Be6 {[%clk 0:00:13.7]} 75... Ke3
{[%clk 0:00:11.1]} 76. Rb4 {[%clk 0:00:13.8]} 76... Ra1 {[%clk 0:00:06.7]} 77.
g7 {[%clk 0:00:13.9]} 77... Rg1 {[%clk 0:00:05.3]} 78. g8=Q {[%clk 0:00:13.9]}
78... Rf1+ {[%clk 0:00:03.7]} 79. Ke5 {[%clk 0:00:13.4]} 79... Kd2 {[%clk
0:00:03]} 80. Qg2+ {[%clk 0:00:13.2]} 80... Ke3 {[%clk 0:00:01.1]} 81. Rb3#
{[%clk 0:00:12.4]} 1-0

[Event "Early-Titled-Tuesday-Blitz-June-18-2024"]
[Site "Chess.com"]
[Date "2024.06.18"]
[Round "10"]
[White "Aradhya2000"]
[Black "ellatambien"]
[Result "0-1"]
[WhiteElo "2808"]
[BlackElo "2708"]
[TimeControl "180+1"]
[EndTime "9:59:21 PDT"]
[Termination "ellatambien won by checkmate"]

1. d4 {[%clk 0:03:00.9]} 1... d5 {[%clk 0:02:59.7]} 2. Nf3 {[%clk 0:03:01.1]}
2... c5 {[%clk 0:02:59.5]} 3. c4 {[%clk 0:02:59.5]} 3... e6 {[%clk 0:02:58.5]}
4. cxd5 {[%clk 0:02:58.8]} 4... exd5 {[%clk 0:02:57.6]} 5. Nc3 {[%clk
0:02:59.1]} 5... Nc6 {[%clk 0:02:56]} 6. dxc5 {[%clk 0:02:58.4]} 6... Bxc5
{[%clk 0:02:33.2]} 7. Qxd5 {[%clk 0:02:56.6]} 7... Qe7 {[%clk 0:02:30.1]} 8. Bg5
{[%clk 0:02:52.3]} 8... f6 {[%clk 0:02:29.4]} 9. Bh4 {[%clk 0:02:50.5]} 9... Be6
{[%clk 0:02:28.7]} 10. Qe4 {[%clk 0:02:46.8]} 10... O-O-O {[%clk 0:02:23.9]} 11.
e3 {[%clk 0:02:46.4]} 11... Nh6 {[%clk 0:02:20.6]} 12. Bb5 {[%clk 0:02:40.3]}
12... Bd7 {[%clk 0:01:57.9]} 13. O-O {[%clk 0:02:23.9]} 13... Qf7 {[%clk
0:01:38.8]} 14. Rac1 {[%clk 0:02:22.8]} 14... Rhe8 {[%clk 0:01:35.8]} 15. Qd5
{[%clk 0:02:20.6]} 15... Bb6 {[%clk 0:01:30.7]} 16. Qxf7 {[%clk 0:02:11.7]}
16... Nxf7 {[%clk 0:01:31.6]} 17. Bg3 {[%clk 0:02:12.1]} 17... Bc7 {[%clk
0:01:26.5]} 18. Bxc7 {[%clk 0:02:07.7]} 18... Kxc7 {[%clk 0:01:27.4]} 19. Rfd1
{[%clk 0:02:03.9]} 19... a6 {[%clk 0:01:22.9]} 20. Bc4 {[%clk 0:02:02.1]} 20...
Nfe5 {[%clk 0:01:16.8]} 21. Nxe5 {[%clk 0:01:59.5]} 21... Nxe5 {[%clk
0:01:17.3]} 22. Bd5 {[%clk 0:01:45.9]} 22... Kb8 {[%clk 0:01:17.5]} 23. Ne4
{[%clk 0:01:39.7]} 23... Bf5 {[%clk 0:01:16.6]} 24. Ng3 {[%clk 0:01:34.1]} 24...
Bg6 {[%clk 0:01:08.6]} 25. e4 {[%clk 0:01:30.9]} 25... Re7 {[%clk 0:01:04.3]}
26. h4 {[%clk 0:01:27.5]} 26... Red7 {[%clk 0:01:01.4]} 27. Bb3 {[%clk 0:01:05]}
27... Rxd1+ {[%clk 0:01:01.3]} 28. Rxd1 {[%clk 0:01:05.2]} 28... Rxd1+ {[%clk
0:01:01.8]} 29. Bxd1 {[%clk 0:01:05.7]} 29... Nd3 {[%clk 0:00:56.3]} 30. b3
{[%clk 0:01:04.4]} 30... Kc7 {[%clk 0:00:56.9]} 31. Nf5 {[%clk 0:00:57.4]} 31...
Bxf5 {[%clk 0:00:51.6]} 32. exf5 {[%clk 0:00:58.3]} 32... Kd6 {[%clk 0:00:52.1]}
33. Bf3 {[%clk 0:00:56.9]} 33... b6 {[%clk 0:00:51.2]} 34. Be2 {[%clk
0:00:51.5]} 34... Nc1 {[%clk 0:00:49.5]} 35. Bxa6 {[%clk 0:00:51.9]} 35... Nxa2
{[%clk 0:00:49.9]} 36. g3 {[%clk 0:00:49.1]} 36... Ke5 {[%clk 0:00:48.7]} 37.
Kf1 {[%clk 0:00:37.5]} 37... Nb4 {[%clk 0:00:48.1]} 38. Bc8 {[%clk 0:00:36.4]}
38... Nc2 {[%clk 0:00:44.3]} 39. Kg2 {[%clk 0:00:13.6]} 39... Nd4 {[%clk
0:00:44.1]} 40. b4 {[%clk 0:00:13.8]} 40... Nxf5 {[%clk 0:00:41.2]} 41. Kf3
{[%clk 0:00:12]} 41... Nd6 {[%clk 0:00:32.8]} 42. Bd7 {[%clk 0:00:10.8]} 42...
Kd4 {[%clk 0:00:32.8]} 43. h5 {[%clk 0:00:07.4]} 43... Kc4 {[%clk 0:00:31.4]}
44. h6 {[%clk 0:00:07.8]} 44... gxh6 {[%clk 0:00:30.9]} 45. Kg4 {[%clk
0:00:08.2]} 45... Kxb4 {[%clk 0:00:30.5]} 46. Kh5 {[%clk 0:00:08.6]} 46... Kc4
{[%clk 0:00:27.9]} 47. Kxh6 {[%clk 0:00:08.8]} 47... b5 {[%clk 0:00:27.9]} 48.
Kxh7 {[%clk 0:00:08.8]} 48... Ne4 {[%clk 0:00:25]} 49. Kg6 {[%clk 0:00:08.6]}
49... b4 {[%clk 0:00:23.3]} 50. Be6+ {[%clk 0:00:05.5]} 50... Kd4 {[%clk
0:00:22]} 51. f3 {[%clk 0:00:05.4]} 51... Ke5 {[%clk 0:00:20]} 52. Bb3 {[%clk
0:00:04.6]} 52... Nxg3 {[%clk 0:00:19.9]} 53. f4+ {[%clk 0:00:04.4]} 53... Kxf4
{[%clk 0:00:20.2]} 54. Kxf6 {[%clk 0:00:05.1]} 54... Ke3 {[%clk 0:00:20.3]} 55.
Ke5 {[%clk 0:00:05.1]} 55... Kd3 {[%clk 0:00:20.9]} 56. Be6 {[%clk 0:00:04.4]}
56... Kc3 {[%clk 0:00:21.1]} 57. Kf4 {[%clk 0:00:04.7]} 57... Ne2+ {[%clk
0:00:18.7]} 58. Ke3 {[%clk 0:00:05.4]} 58... Nd4 {[%clk 0:00:16.9]} 59. Bf7
{[%clk 0:00:05.4]} 59... Nf5+ {[%clk 0:00:16.2]} 60. Ke2 {[%clk 0:00:05.2]}
60... Nd6 {[%clk 0:00:16.7]} 61. Bd5 {[%clk 0:00:04.1]} 61... Nc4 {[%clk
0:00:16.8]} 62. Be4 {[%clk 0:00:02.3]} 62... b3 {[%clk 0:00:16.3]} 63. Bh7
{[%clk 0:00:03]} 63... b2 {[%clk 0:00:13.9]} 64. Bg6 {[%clk 0:00:03.6]} 64...
Na3 {[%clk 0:00:13.7]} 65. Kd1 {[%clk 0:00:03.8]} 65... Nb5 {[%clk 0:00:09.1]}
66. Bh7 {[%clk 0:00:03.7]} 66... Nd6 {[%clk 0:00:09.6]} 67. Bg6 {[%clk
0:00:03.7]} 67... Nc4 {[%clk 0:00:09.8]} 68. Ke2 {[%clk 0:00:03.7]} 68... Ne5
{[%clk 0:00:06.5]} 69. Bh7 {[%clk 0:00:03.5]} 69... Nc6 {[%clk 0:00:06.9]} 70.
Bg6 {[%clk 0:00:03.3]} 70... Nd4+ {[%clk 0:00:07.8]} 71. Kd1 {[%clk 0:00:03.3]}
71... Nf3 {[%clk 0:00:08]} 72. Be4 {[%clk 0:00:02]} 72... Ne5 {[%clk 0:00:08.2]}
73. Bh7 {[%clk 0:00:02.5]} 73... Nd3 {[%clk 0:00:08.1]} 74. Bxd3 {[%clk
0:00:02.5]} 74... Kxd3 {[%clk 0:00:08.2]} 75. Ke1 {[%clk 0:00:03.4]} 75... b1=Q+
{[%clk 0:00:08.7]} 76. Kf2 {[%clk 0:00:04.2]} 76... Qd1 {[%clk 0:00:08.5]} 77.
Kg3 {[%clk 0:00:05.1]} 77... Qf1 {[%clk 0:00:08.2]} 78. Kg4 {[%clk 0:00:05.3]}
78... Ke4 {[%clk 0:00:08.6]} 79. Kg5 {[%clk 0:00:06.2]} 79... Qf5+ {[%clk
0:00:08.7]} 80. Kh6 {[%clk 0:00:07.1]} 80... Qg4 {[%clk 0:00:09.1]} 81. Kh7
{[%clk 0:00:07.3]} 81... Kf5 {[%clk 0:00:10]} 82. Kh8 {[%clk 0:00:08]} 82... Kf6
{[%clk 0:00:10.5]} 83. Kh7 {[%clk 0:00:08.4]} 83... Qg7# {[%clk 0:00:11.2]} 0-1

[Event "Early-Titled-Tuesday-Blitz-June-18-2024"]
[Site "Chess.com"]
[Date "2024.06.18"]
[Round "10"]
[White "BardArtem"]
[Black "snowlord"]
[Result "1/2-1/2"]
[WhiteElo "2850"]
[BlackElo "2956"]
[TimeControl "180+1"]
[EndTime "10:00:26 PDT"]
[Termination "Game drawn by 50-move rule"]

1. e4 {[%clk 0:03:00.9]} 1... d6 {[%clk 0:02:59]} 2. d4 {[%clk 0:02:59.8]} 2...
Nf6 {[%clk 0:02:59.6]} 3. Nc3 {[%clk 0:03:00.3]} 3... g6 {[%clk 0:02:59.3]} 4.
Nf3 {[%clk 0:02:52.9]} 4... Bg7 {[%clk 0:02:59.2]} 5. Be2 {[%clk 0:02:53.5]}
5... O-O {[%clk 0:02:59.4]} 6. O-O {[%clk 0:02:54.1]} 6... a6 {[%clk 0:03:00.1]}
7. h3 {[%clk 0:02:51.8]} 7... e6 {[%clk 0:02:54.1]} 8. a4 {[%clk 0:02:49.2]}
8... Nc6 {[%clk 0:02:54.3]} 9. Re1 {[%clk 0:02:48]} 9... b6 {[%clk 0:02:53.5]}
10. Bg5 {[%clk 0:02:45.1]} 10... h6 {[%clk 0:02:53]} 11. Bf4 {[%clk 0:02:42.1]}
11... Bb7 {[%clk 0:02:50.7]} 12. Qd2 {[%clk 0:02:42.2]} 12... Kh7 {[%clk
0:02:45.5]} 13. Rad1 {[%clk 0:02:42.8]} 13... Re8 {[%clk 0:02:21.4]} 14. Bf1
{[%clk 0:02:41.1]} 14... Nb4 {[%clk 0:02:09.5]} 15. Ne2 {[%clk 0:02:12.2]} 15...
c5 {[%clk 0:02:01.9]} 16. Ng3 {[%clk 0:02:06.1]} 16... Qe7 {[%clk 0:01:35.6]}
17. d5 {[%clk 0:01:48.1]} 17... exd5 {[%clk 0:01:27.8]} 18. c3 {[%clk
0:01:47.6]} 18... Na2 {[%clk 0:01:07.7]} 19. exd5 {[%clk 0:01:46.2]} 19... Qd7
{[%clk 0:01:07.4]} 20. Rxe8 {[%clk 0:01:10.7]} 20... Nxe8 {[%clk 0:00:29.7]} 21.
Bc4 {[%clk 0:01:03.2]} 21... Qxa4 {[%clk 0:00:29.7]} 22. b3 {[%clk 0:01:03.7]}
22... Qa5 {[%clk 0:00:26.4]} 23. b4 {[%clk 0:00:43.6]} 23... cxb4 {[%clk
0:00:27.3]} 24. Bxa2 {[%clk 0:00:37.9]} 24... bxc3 {[%clk 0:00:25.9]} 25. Qc2
{[%clk 0:00:38.5]} 25... Nf6 {[%clk 0:00:20.5]} 26. h4 {[%clk 0:00:33.6]} 26...
Bxd5 {[%clk 0:00:19.4]} 27. Bxd5 {[%clk 0:00:20.1]} 27... Nxd5 {[%clk
0:00:20.3]} 28. Qe4 {[%clk 0:00:20.8]} 28... c2 {[%clk 0:00:11.1]} 29. Rxd5
{[%clk 0:00:20.7]} 29... Qa1+ {[%clk 0:00:10.5]} 30. Kh2 {[%clk 0:00:21.3]}
30... c1=Q {[%clk 0:00:08.5]} 31. Bxc1 {[%clk 0:00:21.6]} 31... Qxc1 {[%clk
0:00:09.4]} 32. h5 {[%clk 0:00:22.3]} 32... Qc6 {[%clk 0:00:04.8]} 33. hxg6+
{[%clk 0:00:20.7]} 33... fxg6 {[%clk 0:00:05.7]} 34. Nh4 {[%clk 0:00:18.1]}
34... Qe8 {[%clk 0:00:06.4]} 35. Qd3 {[%clk 0:00:16.5]} 35... Be5 {[%clk
0:00:05.2]} 36. Nf3 {[%clk 0:00:09.6]} 36... Bf4 {[%clk 0:00:03.7]} 37. Rd4
{[%clk 0:00:07.7]} 37... Qf7 {[%clk 0:00:03.7]} 38. Qe4 {[%clk 0:00:05.6]} 38...
Rf8 {[%clk 0:00:04.3]} 39. Kg1 {[%clk 0:00:05.1]} 39... b5 {[%clk 0:00:04.7]}
40. Ne2 {[%clk 0:00:04]} 40... Be5 {[%clk 0:00:04.3]} 41. Rd2 {[%clk 0:00:03]}
41... Qg7 {[%clk 0:00:04.1]} 42. Nxe5 {[%clk 0:00:01.9]} 42... Qxe5 {[%clk
0:00:05]} 43. Qxe5 {[%clk 0:00:02.2]} 43... dxe5 {[%clk 0:00:05.2]} 44. Ra2
{[%clk 0:00:03.1]} 44... Rf6 {[%clk 0:00:05]} 45. Nc3 {[%clk 0:00:02.9]} 45...
Rc6 {[%clk 0:00:05.1]} 46. Nd5 {[%clk 0:00:02.3]} 46... e4 {[%clk 0:00:04.5]}
47. Nb4 {[%clk 0:00:02.2]} 47... Rc4 {[%clk 0:00:04.1]} 48. Nxa6 {[%clk
0:00:02.5]} 48... g5 {[%clk 0:00:03.4]} 49. Rb2 {[%clk 0:00:02.2]} 49... Rc3
{[%clk 0:00:03.8]} 50. Rxb5 {[%clk 0:00:01.9]} 50... e3 {[%clk 0:00:04.5]} 51.
fxe3 {[%clk 0:00:02.6]} 51... Rxe3 {[%clk 0:00:04.9]} 52. Nc5 {[%clk 0:00:02.7]}
52... Re5 {[%clk 0:00:05.1]} 53. Rb7+ {[%clk 0:00:02.9]} 53... Kg6 {[%clk
0:00:05.8]} 54. Nd3 {[%clk 0:00:03.3]} 54... Rd5 {[%clk 0:00:05]} 55. Nf2 {[%clk
0:00:03.3]} 55... h5 {[%clk 0:00:04.8]} 56. Rb6+ {[%clk 0:00:03.7]} 56... Kf5
{[%clk 0:00:05.3]} 57. Rb8 {[%clk 0:00:03.1]} 57... Rd4 {[%clk 0:00:05.3]} 58.
Rf8+ {[%clk 0:00:03.4]} 58... Kg6 {[%clk 0:00:05.9]} 59. Rg8+ {[%clk 0:00:03.8]}
59... Kf6 {[%clk 0:00:05.9]} 60. Rf8+ {[%clk 0:00:04.2]} 60... Kg6 {[%clk
0:00:06.4]} 61. Rf3 {[%clk 0:00:05.1]} 61... g4 {[%clk 0:00:05.1]} 62. Ra3
{[%clk 0:00:05.2]} 62... h4 {[%clk 0:00:04.7]} 63. Kf1 {[%clk 0:00:02.3]} 63...
Rf4 {[%clk 0:00:04.1]} 64. Ke2 {[%clk 0:00:02.4]} 64... Rb4 {[%clk 0:00:04.4]}
65. Ra5 {[%clk 0:00:01.9]} 65... h3 {[%clk 0:00:04]} 66. gxh3 {[%clk 0:00:01.9]}
66... gxh3 {[%clk 0:00:04.9]} 67. Nxh3 {[%clk 0:00:02.1]} 67... Rb2+ {[%clk
0:00:05.4]} 68. Kf3 {[%clk 0:00:02.3]} 68... Rb3+ {[%clk 0:00:06]} 69. Kg4
{[%clk 0:00:03]} 69... Rb4+ {[%clk 0:00:06.5]} 70. Nf4+ {[%clk 0:00:03.7]} 70...
Kf6 {[%clk 0:00:07.1]} 71. Ra6+ {[%clk 0:00:03.9]} 71... Ke7 {[%clk 0:00:04.8]}
72. Rh6 {[%clk 0:00:02.3]} 72... Kd7 {[%clk 0:00:04.7]} 73. Kf3 {[%clk
0:00:02.7]} 73... Rb1 {[%clk 0:00:04.3]} 74. Ke4 {[%clk 0:00:02.9]} 74... Re1+
{[%clk 0:00:04.6]} 75. Kf5 {[%clk 0:00:02.1]} 75... Rd1 {[%clk 0:00:04.8]} 76.
Rh7+ {[%clk 0:00:01]} 76... Kd6 {[%clk 0:00:05.1]} 77. Rh6+ {[%clk 0:00:01.9]}
77... Kd7 {[%clk 0:00:05.7]} 78. Ra6 {[%clk 0:00:01.6]} 78... Rd6 {[%clk
0:00:05.4]} 79. Ra7+ {[%clk 0:00:01.6]} 79... Kc6 {[%clk 0:00:06.3]} 80. Ra1
{[%clk 0:00:02.3]} 80... Kd7 {[%clk 0:00:06.7]} 81. Ke5 {[%clk 0:00:02.4]} 81...
Rd2 {[%clk 0:00:06.9]} 82. Ra7+ {[%clk 0:00:02.7]} 82... Kc6 {[%clk 0:00:06.9]}
83. Ra6+ {[%clk 0:00:03.1]} 83... Kd7 {[%clk 0:00:06.5]} 84. Nd5 {[%clk
0:00:03.1]} 84... Re2+ {[%clk 0:00:06.6]} 85. Kd4 {[%clk 0:00:03.8]} 85... Rd2+
{[%clk 0:00:07.2]} 86. Kc4 {[%clk 0:00:04.5]} 86... Rd1 {[%clk 0:00:06.8]} 87.
Nb4 {[%clk 0:00:01.7]} 87... Rd2 {[%clk 0:00:06.4]} 88. Nd3 {[%clk 0:00:01.7]}
88... Rd1 {[%clk 0:00:06.2]} 89. Kd4 {[%clk 0:00:02.2]} 89... Ke7 {[%clk
0:00:05.8]} 90. Rh6 {[%clk 0:00:02.4]} 90... Kd7 {[%clk 0:00:06.1]} 91. Rh3
{[%clk 0:00:02.3]} 91... Kd6 {[%clk 0:00:05.4]} 92. Ke4 {[%clk 0:00:02.8]} 92...
Ke6 {[%clk 0:00:04.2]} 93. Nf4+ {[%clk 0:00:01.8]} 93... Kd7 {[%clk 0:00:04.4]}
94. Rh6 {[%clk 0:00:01.5]} 94... Kc7 {[%clk 0:00:04.4]} 95. Nd5+ {[%clk
0:00:01.9]} 95... Kd7 {[%clk 0:00:05]} 96. Ne3 {[%clk 0:00:01.9]} 96... Re1
{[%clk 0:00:05]} 97. Rh7+ {[%clk 0:00:02.8]} 97... Kd6 {[%clk 0:00:05.4]} 98.
Kd4 {[%clk 0:00:03.3]} 98... Ke6 {[%clk 0:00:05.5]} 99. Rh6+ {[%clk 0:00:03.9]}
99... Kd7 {[%clk 0:00:06.1]} 100. Nc4 {[%clk 0:00:04.5]} 100... Rd1+ {[%clk
0:00:06.2]} 101. Kc5 {[%clk 0:00:05.2]} 101... Re1 {[%clk 0:00:06.7]} 102. Nb6+
{[%clk 0:00:05.5]} 102... Ke7 {[%clk 0:00:06.9]} 103. Nd5+ {[%clk 0:00:06.2]}
103... Kf7 {[%clk 0:00:07.5]} 104. Kd6 {[%clk 0:00:06.3]} 104... Re2 {[%clk
0:00:07.5]} 105. Rh3 {[%clk 0:00:06.1]} 105... Re1 {[%clk 0:00:07.6]} 106. Rf3+
{[%clk 0:00:06.6]} 106... Kg6 {[%clk 0:00:07.8]} 107. Nf4+ {[%clk 0:00:07.3]}
107... Kg7 {[%clk 0:00:07.9]} 108. Ne6+ {[%clk 0:00:08.2]} 108... Kg6 {[%clk
0:00:08.4]} 109. Rg3+ {[%clk 0:00:07.5]} 109... Kf6 {[%clk 0:00:09]} 110. Rf3+
{[%clk 0:00:04]} 110... Kg6 {[%clk 0:00:09.6]} 111. Ke7 {[%clk 0:00:04.9]}
111... Kh5 {[%clk 0:00:08.4]} 112. Rg3 {[%clk 0:00:04.7]} 112... Kh4 {[%clk
0:00:09]} 113. Rg8 {[%clk 0:00:05]} 113... Re4 {[%clk 0:00:09.3]} 114. Kf6
{[%clk 0:00:05.2]} 114... Rg4 {[%clk 0:00:09.8]} 115. Rh8+ {[%clk 0:00:03.3]}
115... Kg3 {[%clk 0:00:10.7]} 116. Kf5 {[%clk 0:00:04.2]} 116... Ra4 {[%clk
0:00:10.6]} 117. Rg8+ {[%clk 0:00:04.3]} 1/2-1/2

[Event "Early-Titled-Tuesday-Blitz-June-18-2024"]
[Site "Chess.com"]
[Date "2024.06.18"]
[Round "11"]
[White "dianamirza"]
[Black "aquarium76"]
[Result "0-1"]
[WhiteElo "1783"]
[BlackElo "2965"]
[TimeControl "180+1"]
[EndTime "10:02:31 PDT"]
[Termination "aquarium76 won by resignation"]

1. d4 {[%clk 0:03:00.9]} 1... Nf6 {[%clk 0:02:58.7]} 2. c4 {[%clk 0:02:49.4]}
2... g6 {[%clk 0:02:58.2]} 3. Nc3 {[%clk 0:02:50.3]} 3... Bg7 {[%clk 0:02:58.2]}
4. e4 {[%clk 0:02:45.2]} 4... d6 {[%clk 0:02:58.2]} 5. f3 {[%clk 0:02:42.9]}
5... O-O {[%clk 0:02:56.6]} 6. Be3 {[%clk 0:02:43]} 6... b6 {[%clk 0:02:54.6]}
7. Qd2 {[%clk 0:02:43.2]} 7... c5 {[%clk 0:02:53.5]} 8. d5 {[%clk 0:02:35.3]}
8... e6 {[%clk 0:02:53.5]} 9. g3 {[%clk 0:02:34.1]} 9... Re8 {[%clk 0:02:44.3]}
10. Nge2 {[%clk 0:02:27.6]} 10... Nbd7 {[%clk 0:02:35.5]} 11. Nb5 {[%clk
0:02:20.3]} 11... Ne5 {[%clk 0:02:34.1]} 12. b3 {[%clk 0:02:16.9]} 12... Nxf3+
{[%clk 0:02:33.7]} 0-1